[Event "Queens Festival Europe 2022"]
[Site "Tornelo"]
[Date "2022.06.19"]
[Round "8.9"]
[White "Rahimli, Izzat"]
[Black "Grimaldi, Angela Flavia"]
[Result "0-1"]
[ECO "D05"]
[WhiteElo "1817"]
[BlackElo "1995"]
[Annotator "NA RC"]
[PlyCount "132"]
[EventDate "2022.06.19"]
[EventType "swiss"]
[EventCountry "NET"]
[SourceTitle "playchess.com"]
[Source "ChessBase"]
[SourceQuality "1"]
[TimeControl "180+2"]

1. d4 {[%emt 0:00:02]} d5 {[%emt 0:00:05]} 2. Nf3 {[%emt 0:00:03]} Nf6 {[%emt 0:00:06]} 3. e3 {[%emt 0:00:02]} e6 {[%emt 0:00:01]} 4. Bd3 {[%emt 0:00:02]} c5 {[%emt 0:00:01]} 5. b3 {[%emt 0:00:02]} Bd6 {[%emt 0:00:04]} 6. Bb2 {[%emt 0:00:01]} Nbd7 {[%emt 0:00:01]} 7. O-O {[%emt 0:00:02]} b6 {[%emt 0:00:02]} 8. Nbd2 {[%emt 0:00:01]} O-O {[%emt 0:00:02]} 9. Ne5 {[%emt 0:00:02]} Bb7 {[%emt 0:00:04]} 10. f4 {[%emt 0:00:06]} Rc8 {[%emt 0:00:16]} 11. c3 {[%emt 0:00:05]} a6 {[%emt 0:00:05]} 12. Rf3 {[%emt 0:00:07]} Ne4 {[%emt 0:00:06]} 13. Nxd7 {[%emt 0:00:18]} Qxd7 {[%emt 0:00:15]} 14. Rh3 {[%emt 0:00:03]} f5 {[%emt 0:00:21]} 15. Nf3 {[%emt 0:00:10]} b5 {[%emt 0:00:16]} 16. Ne5 {[%emt 0:00:05]} Bxe5 {[%emt 0:00:03]} 17. dxe5 {[%emt 0:00:04]} c4 {[%emt 0:00:05]} 18. bxc4 {[%emt 0:00:26]} bxc4 {[%emt 0:00:21]} 19. Bxe4 {[%emt 0:00:03]} fxe4 {[%emt 0:00:02]} 20. Ba3 {[%emt 0:00:06]} Rf7 {[%emt 0:00:13]} 21. Bd6 {[%emt 0:00:03]} Bc6 {[%emt 0:00:02]} 22. Rb1 {[%emt 0:00:08]} Ba4 {[%emt 0:00:05]} 23. Qd2 {[%emt 0:00:04]} Qd8 {[%emt 0:00:06]} 24. g4 {[%emt 0:00:11]} Qa5 {[%emt 0:00:19]} 25. g5 {[%emt 0:00:02]} g6 {[%emt 0:00:11]} 26. Rg3 {[%emt 0:00:08]} Bc6 {[%emt 0:00:16]} 27. Rg2 {[%emt 0:00:11]} Rb7 {[%emt 0:00:13]} 28. Rxb7 {[%emt 0:00:04]} Bxb7 {[%emt 0:00:00]} 29. Qb2 {[%emt 0:00:05]} Qb5 {[%emt 0:00:06]} 30. Rc2 {[%emt 0:00:05]} Bc6 {[%emt 0:00:05]} 31. Qb4 {[%emt 0:00:17]} Rd8 {[%emt 0:00:05]} 32. Rb2 {[%emt 0:00:04]} Rd7 {[%emt 0:00:02]} 33. Qxb5 {[%emt 0:00:07]} axb5 {[%emt 0:00:02]} 34. a3 {[%emt 0:00:04]} Ra7 {[%emt 0:00:01]} 35. Kg2 {[%emt 0:00:04]} Kf7 {[%emt 0:00:02]} 36. Kg3 {[%emt 0:00:02]} Ra4 {[%emt 0:00:02]} 37. h4 {[%emt 0:00:04]} Ra8 {[%emt 0:00:02]} 38. Rh2 {[%emt 0:00:03]} Rh8 {[%emt 0:00:03]} 39. h5 {[%emt 0:00:03]} gxh5 {[%emt 0:00:03]} 40. Rxh5 {[%emt 0:00:02]} Be8 {[%emt 0:00:02]} 41. Rh6 {[%emt 0:00:04]} Bd7 {[%emt 0:00:02]} 42. Kg4 {[%emt 0:00:03]} Kg7 {[%emt 0:00:02]} 43. Be7 {[%emt 0:00:04]} Re8 {[%emt 0:00:02]} 44. Bf6+ {[%emt 0:00:06]} Kg8 {[%emt 0:00:02]} 45. Kh5 {[%emt 0:00:06]} Ra8 {[%emt 0:00:03]} 46. Be7 {[%emt 0:00:04]} Be8+ {[%emt 0:00:02]} 47. Kg4 {[%emt 0:00:04]} Bg6 {[%emt 0:00:01]} 48. Rh2 {[%emt 0:00:05]} Bf5+ {[%emt 0:00:02]} 49. Kh5 {[%emt 0:00:03]} Bg6+ {[%emt 0:00:01]} 50. Kh6 {[%emt 0:00:02]} Kf7 {[%emt 0:00:02]} 51. Rb2 {[%emt 0:00:03]} Kxe7 {[%emt 0:00:02]} 52. Rxb5 {[%emt 0:00:04]} Ra7 {[%emt 0:00:03]} 53. a4 {[%emt 0:00:06]} Rxa4 {[%emt 0:00:02]} 54. Rb7+ {[%emt 0:00:02]} Kd8 {[%emt 0:00:01]} 55. Kg7 {[%emt 0:00:02]} Kc8 {[%emt 0:00:02]} 56. Re7 {[%emt 0:00:03]} Bf5 {[%emt 0:00:02]} 57. Kf6 {[%emt 0:00:03]} Kd8 {[%emt 0:00:03]} 58. Rb7 {[%emt 0:00:03]} Ra8 {[%emt 0:00:03]} 59. Rg7 {[%emt 0:00:05]} Kc8 {[%emt 0:00:03]} 60. Rg8+ {[%emt 0:00:04]} Kb7 {[%emt 0:00:01]} 61. Rg7+ {[%emt 0:00:02]} Kb6 {[%emt 0:00:01]} 62. Re7 {[%emt 0:00:02]} Kb5 {[%emt 0:00:02]} 63. Rxe6 {[%emt 0:00:02]} Bxe6 {[%emt 0:00:02]} 64. Kxe6 {[%emt 0:00:02]} Kc6 {[%emt 0:00:01]} 65. f5 {[%emt 0:00:03]} Re8+ {[%emt 0:00:02]} 66. Kf7 {[%emt 0:00:03]} Rxe5 {[%emt 0:00:01]} 0-1

[Event "Queens Festival Europe 2022"]
[Site "Tornelo"]
[Date "2022.06.19"]
[Round "8.9"]
[White "Strnadova, Monika"]
[Black "McCormick, Polly"]
[Result "1-0"]
[ECO "C41"]
[WhiteElo "1518"]
[BlackElo "1222"]
[Annotator "NA RC"]
[PlyCount "63"]
[EventDate "2022.06.19"]
[EventType "swiss"]
[EventCountry "NET"]
[SourceTitle "playchess.com"]
[Source "ChessBase"]
[SourceQuality "1"]
[TimeControl "180+2"]

1. e4 {[%emt 0:00:02]} d6 {[%emt 0:00:04]} 2. Nf3 {[%emt 0:00:02]} Nf6 {[%emt 0:00:02]} 3. Nc3 {[%emt 0:00:03]} e5 {[%emt 0:00:04]} 4. d4 {[%emt 0:00:01]} Nbd7 {[%emt 0:00:03]} 5. dxe5 {[%emt 0:00:02]} dxe5 {[%emt 0:00:01]} 6. Bc4 {[%emt 0:00:03]} h6 {[%emt 0:00:04]} 7. Nd5 {[%emt 0:00:07]} Be7 {[%emt 0:00:09]} 8. Nxe7 {[%emt 0:00:07]} Qxe7 {[%emt 0:00:06]} 9. O-O {[%emt 0:00:01]} g5 {[%emt 0:00:02]} 10. Re1 {[%emt 0:00:06]} Nf8 {[%emt 0:00:03]} 11. b3 {[%emt 0:00:07]} Ng6 {[%emt 0:00:09]} 12. Bb2 {[%emt 0:00:03]} Bd7 {[%emt 0:00:19]} 13. a4 {[%emt 0:00:13]} O-O-O {[%emt 0:00:03]} 14. Ba3 {[%emt 0:00:04]} Qe8 {[%emt 0:00:07]} 15. Bc5 {[%emt 0:00:10]} Bg4 {[%emt 0:00:11]} 16. Bxa7 {[%emt 0:00:06]} Rxd1 {[%emt 0:00:03]} 17. Raxd1 {[%emt 0:00:05]} Bxf3 {[%emt 0:00:07]} 18. gxf3 {[%emt 0:00:02]} h5 {[%emt 0:00:03]} 19. Bb5 {[%emt 0:00:02]} c6 {[%emt 0:00:04]} 20. Bc4 {[%emt 0:00:01]} Qe7 {[%emt 0:00:14]} 21. a5 {[%emt 0:00:08]} Nh4 {[%emt 0:00:08]} 22. Re3 {[%emt 0:00:06]} Rd8 {[%emt 0:00:04]} 23. Ra1 {[%emt 0:00:09]} b5 {[%emt 0:00:16]} 24. axb6 {[%emt 0:00:07]} Kb7 {[%emt 0:00:16]} 25. Ba6+ {[%emt 0:00:04]} Ka8 {[%emt 0:00:05]} 26. Rd3 {[%emt 0:00:31]} Rc8 {[%emt 0:00:14]} 27. Bxc8 {[%emt 0:00:03]} Nxf3+ {[%emt 0:00:13]} 28. Rxf3 {[%emt 0:00:10]} Nxe4 {[%emt 0:00:12]} 29. b7+ {[%emt 0:00:05]} Qxb7 {[%emt 0:00:02]} 30. Bxb7+ {[%emt 0:00:01]} Kxb7 {[%emt 0:00:01]} 31. Rxf7+ {[%emt 0:00:02]} Kc8 {[%emt 0:00:05]} 32. Be3 {[%emt 0:00:03]} 1-0

[Event "Queens Festival Europe 2022"]
[Site "Tornelo"]
[Date "2022.06.19"]
[Round "8.11"]
[White "Ismayilova, Salbinaz"]
[Black "Bruntse, Caroline Lindegaard"]
[Result "1-0"]
[ECO "B07"]
[WhiteElo "1090"]
[BlackElo "1503"]
[Annotator "NA RC"]
[PlyCount "121"]
[EventDate "2022.06.19"]
[EventType "swiss"]
[EventCountry "NET"]
[SourceTitle "playchess.com"]
[Source "ChessBase"]
[SourceQuality "1"]
[TimeControl "180+2"]

1. e4 {[%emt 0:00:02]} c5 {[%emt 0:00:05]} 2. c3 {[%emt 0:00:03]} d6 {[%emt 0:00:02]} 3. d4 {[%emt 0:00:02]} cxd4 {[%emt 0:00:01]} 4. cxd4 {[%emt 0:00:02]} Nc6 {[%emt 0:00:02]} 5. Nf3 {[%emt 0:00:03]} g6 {[%emt 0:00:03]} 6. Nc3 {[%emt 0:00:02]} Bg7 {[%emt 0:00:02]} 7. Be3 {[%emt 0:00:04]} Nf6 {[%emt 0:00:02]} 8. Bd3 {[%emt 0:00:02]} O-O {[%emt 0:00:04]} 9. O-O {[%emt 0:00:03]} b6 {[%emt 0:00:15]} 10. Bb5 {[%emt 0:00:05]} Bb7 {[%emt 0:00:04]} 11. d5 {[%emt 0:00:06]} Nb8 {[%emt 0:00:22]} 12. Nd2 {[%emt 0:00:10]} Nbd7 {[%emt 0:00:04]} 13. f4 {[%emt 0:00:04]} Nc5 {[%emt 0:00:10]} 14. Bxc5 {[%emt 0:00:06]} bxc5 {[%emt 0:00:05]} 15. f5 {[%emt 0:00:05]} a6 {[%emt 0:00:05]} 16. Ba4 {[%emt 0:00:03]} Rb8 {[%emt 0:00:07]} 17. Bb3 {[%emt 0:00:03]} Nd7 {[%emt 0:00:27]} 18. fxg6 {[%emt 0:00:08]} hxg6 {[%emt 0:00:03]} 19. Qg4 {[%emt 0:00:05]} Ne5 {[%emt 0:00:10]} 20. Qh3 {[%emt 0:00:05]} Bc8 {[%emt 0:00:08]} 21. Qh4 {[%emt 0:00:07]} Bf6 {[%emt 0:00:14]} 22. Qf4 {[%emt 0:00:10]} Nd3 {[%emt 0:00:19]} 23. Qh6 {[%emt 0:00:11]} Bg7 {[%emt 0:00:08]} 24. Qh4 {[%emt 0:00:09]} Nxb2 {[%emt 0:00:15]} 25. Qg3 {[%emt 0:00:08]} c4 {[%emt 0:00:26]} 26. Nxc4 {[%emt 0:00:19]} Nxc4 {[%emt 0:00:02]} 27. Bxc4 {[%emt 0:00:02]} Qa5 {[%emt 0:00:02]} 28. Rac1 {[%emt 0:00:03]} Bd7 {[%emt 0:00:06]} 29. Rf3 {[%emt 0:00:04]} Bb5 {[%emt 0:00:03]} 30. Bxb5 {[%emt 0:00:02]} axb5 {[%emt 0:00:03]} 31. Nd1 {[%emt 0:00:04]} Qb6+ {[%emt 0:00:01]} 32. Kh1 {[%emt 0:00:05]} f6 {[%emt 0:00:02]} 33. Qh4 {[%emt 0:00:04]} Qb7 {[%emt 0:00:02]} 34. Rh3 {[%emt 0:00:04]} Kf7 {[%emt 0:00:01]} 35. Ne3 {[%emt 0:00:03]} Rh8 {[%emt 0:00:02]} 36. Qg3 {[%emt 0:00:04]} Rxh3 {[%emt 0:00:01]} 37. Qxh3 {[%emt 0:00:02]} Qb6 {[%emt 0:00:01]} 38. Ng4 {[%emt 0:00:03]} b4 {[%emt 0:00:02]} 39. Nh6+ {[%emt 0:00:06]} Bxh6 {[%emt 0:00:02]} 40. Qxh6 {[%emt 0:00:02]} Rg8 {[%emt 0:00:02]} 41. Qh3 {[%emt 0:00:08]} Rg7 {[%emt 0:00:02]} 42. Qe6+ {[%emt 0:00:05]} Ke8 {[%emt 0:00:07]} 43. Rc8+ {[%emt 0:00:03]} Qd8 {[%emt 0:00:01]} 44. Rxd8+ {[%emt 0:00:03]} Kxd8 {[%emt 0:00:02]} 45. Qh3 {[%emt 0:00:02]} Ke8 {[%emt 0:00:02]} 46. Qb3 {[%emt 0:00:04]} g5 {[%emt 0:00:02]} 47. Qxb4 {[%emt 0:00:02]} g4 {[%emt 0:00:01]} 48. a4 {[%emt 0:00:03]} g3 {[%emt 0:00:02]} 49. hxg3 {[%emt 0:00:02]} Rxg3 {[%emt 0:00:03]} 50. a5 {[%emt 0:00:03]} Rg4 {[%emt 0:00:02]} 51. a6 {[%emt 0:00:04]} f5 {[%emt 0:00:01]} 52. a7 {[%emt 0:00:03]} Rxe4 {[%emt 0:00:02]} 53. Qb8+ {[%emt 0:00:03]} Kf7 {[%emt 0:00:03]} 54. a8=Q {[%emt 0:00:04]} Rh4+ {[%emt 0:00:02]} 55. Kg1 {[%emt 0:00:04]} Re4 {[%emt 0:00:01]} 56. Qf8+ {[%emt 0:00:02]} Kg6 {[%emt 0:00:02]} 57. Qg8+ {[%emt 0:00:02]} Kh6 {[%emt 0:00:03]} 58. Qh8+ {[%emt 0:00:02]} Kg5 {[%emt 0:00:03]} 59. Qag8+ {[%emt 0:00:02]} Kf4 {[%emt 0:00:02]} 60. Qh4+ {[%emt 0:00:03]} Ke5 {[%emt 0:00:02]} 61. Qxe7+ {[%emt 0:00:02]} 1-0

[Event "Queens Festival Europe 2022"]
[Site "Tornelo"]
[Date "2022.06.19"]
[Round "8.12"]
[White "Rashidova, Nargiz"]
[Black "Pyun, Lindsay"]
[Result "0-1"]
[ECO "D02"]
[WhiteElo "1341"]
[BlackElo "1526"]
[Annotator "NA RC"]
[PlyCount "69"]
[EventDate "2022.06.19"]
[EventType "swiss"]
[EventCountry "NET"]
[SourceTitle "playchess.com"]
[Source "ChessBase"]
[SourceQuality "1"]
[TimeControl "180+2"]

1. d4 {[%emt 0:00:02]} d5 {[%emt 0:00:04]} 2. Nf3 {[%emt 0:00:02]} Nf6 {[%emt 0:00:03]} 3. Bf4 {[%emt 0:00:01]} Bf5 {[%emt 0:00:02]} 4. e3 {[%emt 0:00:02]} c6 {[%emt 0:00:02]} 5. Bd3 {[%emt 0:00:03]} Bxd3 {[%emt 0:00:02]} 6. cxd3 {[%emt 0:00:02]} e6 {[%emt 0:00:01]} 7. Nc3 {[%emt 0:00:01]} Bd6 {[%emt 0:00:02]} 8. Bg3 {[%emt 0:00:02]} O-O {[%emt 0:00:02]} 9. Qe2 {[%emt 0:00:01]} Qe7 {[%emt 0:00:08]} 10. O-O {[%emt 0:00:02]} Nbd7 {[%emt 0:00:02]} 11. e4 {[%emt 0:00:03]} dxe4 {[%emt 0:00:05]} 12. dxe4 {[%emt 0:00:02]} e5 {[%emt 0:00:04]} 13. d5 {[%emt 0:00:24]} cxd5 {[%emt 0:00:06]} 14. exd5 {[%emt 0:00:02]} Rfe8 {[%emt 0:00:16]} 15. Bh4 {[%emt 0:00:08]} e4 {[%emt 0:00:08]} 16. Nd4 {[%emt 0:00:14]} Qe5 {[%emt 0:00:01]} 17. Bg3 {[%emt 0:00:10]} Qxd4 {[%emt 0:00:08]} 18. Bxd6 {[%emt 0:00:02]} Nb6 {[%emt 0:00:13]} 19. Rad1 {[%emt 0:00:18]} Qc4 {[%emt 0:00:01]} 20. Qd2 {[%emt 0:00:46]} Rad8 {[%emt 0:00:08]} 21. b3 {[%emt 0:00:11]} Qc8 {[%emt 0:00:08]} 22. Nb5 {[%emt 0:00:09]} a6 {[%emt 0:00:09]} 23. Nc7 {[%emt 0:00:22]} Rxd6 {[%emt 0:00:07]} 24. Nxe8 {[%emt 0:00:01]} Qxe8 {[%emt 0:00:02]} 25. Qb4 {[%emt 0:00:04]} Qd7 {[%emt 0:00:09]} 26. Rc1 {[%emt 0:00:18]} h6 {[%emt 0:00:13]} 27. Rc5 {[%emt 0:00:14]} Nbxd5 {[%emt 0:00:05]} 28. Qc4 {[%emt 0:00:04]} Nb6 {[%emt 0:00:04]} 29. Qc2 {[%emt 0:00:02]} Rd2 {[%emt 0:00:02]} 30. Qc3 {[%emt 0:00:03]} Rd1 {[%emt 0:00:06]} 31. g3 {[%emt 0:00:05]} Rxf1+ {[%emt 0:00:02]} 32. Kxf1 {[%emt 0:00:01]} Qd1+ {[%emt 0:00:02]} 33. Kg2 {[%emt 0:00:02]} Qd6 {[%emt 0:00:11]} 34. Qe3 {[%emt 0:00:02]} Nbd5 {[%emt 0:00:03]} 35. Qc3 {[%emt 0:00:02]} 0-1

[Event "Queens Festival Europe 2022"]
[Site "Tornelo"]
[Date "2022.06.19"]
[Round "9.1"]
[White "Head, Louise"]
[Black "Okuyaz, Duru"]
[Result "1/2-1/2"]
[ECO "D16"]
[WhiteElo "2025"]
[BlackElo "2090"]
[Annotator "NA RC"]
[PlyCount "106"]
[EventDate "2022.06.19"]
[EventType "swiss"]
[EventCountry "NET"]
[SourceTitle "playchess.com"]
[Source "ChessBase"]
[SourceQuality "1"]
[TimeControl "180+2"]

1. d4 {[%emt 0:00:02]} d5 {[%emt 0:00:04]} 2. c4 {[%emt 0:00:02]} c6 {[%emt 0:00:01]} 3. Nf3 {[%emt 0:00:04]} Nf6 {[%emt 0:00:02]} 4. Nc3 {[%emt 0:00:04]} dxc4 {[%emt 0:00:04]} 5. a4 {[%emt 0:00:02]} Bg4 {[%emt 0:00:03]} 6. Ne5 {[%emt 0:00:02]} Be6 {[%emt 0:00:03]} 7. e3 {[%emt 0:00:04]} Nbd7 {[%emt 0:00:08]} 8. Bxc4 {[%emt 0:00:04]} Bxc4 {[%emt 0:00:05]} 9. Nxc4 {[%emt 0:00:03]} e6 {[%emt 0:00:00]} 10. O-O {[%emt 0:00:04]} Be7 {[%emt 0:00:02]} 11. e4 {[%emt 0:00:02]} O-O {[%emt 0:00:05]} 12. Bf4 {[%emt 0:00:02]} Nb6 {[%emt 0:00:09]} 13. Ne3 {[%emt 0:00:11]} c5 {[%emt 0:00:05]} 14. d5 {[%emt 0:00:08]} exd5 {[%emt 0:00:03]} 15. Nexd5 {[%emt 0:00:15]} Nbxd5 {[%emt 0:00:02]} 16. exd5 {[%emt 0:00:04]} Bd6 {[%emt 0:00:02]} 17. Bg5 {[%emt 0:00:05]} Be5 {[%emt 0:00:16]} 18. Ne4 {[%emt 0:00:10]} Bxb2 {[%emt 0:00:38]} 19. Rb1 {[%emt 0:00:06]} Bd4 {[%emt 0:00:01]} 20. Bxf6 {[%emt 0:00:24]} Bxf6 {[%emt 0:00:03]} 21. Nxf6+ {[%emt 0:00:02]} Qxf6 {[%emt 0:00:01]} 22. Rxb7 {[%emt 0:00:01]} Rfd8 {[%emt 0:00:02]} 23. Rb5 {[%emt 0:00:15]} Qd6 {[%emt 0:00:03]} 24. Qc2 {[%emt 0:00:21]} Rac8 {[%emt 0:00:03]} 25. Rd1 {[%emt 0:00:02]} c4 {[%emt 0:00:01]} 26. g3 {[%emt 0:00:07]} c3 {[%emt 0:00:03]} 27. Rd3 {[%emt 0:00:03]} Qa3 {[%emt 0:00:41]} 28. Rb7 {[%emt 0:00:05]} Qc5 {[%emt 0:00:06]} 29. Rb3 {[%emt 0:00:08]} Qa5 {[%emt 0:00:25]} 30. Rbxc3 {[%emt 0:00:04]} Rxc3 {[%emt 0:00:05]} 31. Rxc3 {[%emt 0:00:02]} Qxd5 {[%emt 0:00:02]} 32. Rc7 {[%emt 0:00:08]} g6 {[%emt 0:00:04]} 33. Rxa7 {[%emt 0:00:07]} Qf3 {[%emt 0:00:03]} 34. Rd7 {[%emt 0:00:12]} Re8 {[%emt 0:00:09]} 35. Rd1 {[%emt 0:00:08]} Re2 {[%emt 0:00:04]} 36. Qc8+ {[%emt 0:00:02]} Kg7 {[%emt 0:00:01]} 37. Qc5 {[%emt 0:00:02]} Qf6 {[%emt 0:00:06]} 38. Rc1 {[%emt 0:00:05]} Ra2 {[%emt 0:00:03]} 39. a5 {[%emt 0:00:02]} Qa6 {[%emt 0:00:04]} 40. Qd4+ {[%emt 0:00:07]} Qf6 {[%emt 0:00:05]} 41. Qxf6+ {[%emt 0:00:02]} Kxf6 {[%emt 0:00:01]} 42. Rc6+ {[%emt 0:00:02]} Ke5 {[%emt 0:00:02]} 43. Rc7 {[%emt 0:00:05]} Ke6 {[%emt 0:00:05]} 44. Ra7 {[%emt 0:00:03]} h5 {[%emt 0:00:03]} 45. Kg2 {[%emt 0:00:01]} f6 {[%emt 0:00:06]} 46. h4 {[%emt 0:00:02]} Kf5 {[%emt 0:00:03]} 47. Ra8 {[%emt 0:00:02]} Ra3 {[%emt 0:00:04]} 48. a6 {[%emt 0:00:02]} Ra2 {[%emt 0:00:02]} 49. a7 {[%emt 0:00:03]} Ra3 {[%emt 0:00:02]} 50. Kg1 {[%emt 0:00:05]} Ra1+ {[%emt 0:00:03]} 51. Kg2 {[%emt 0:00:02]} Ra3 {[%emt 0:00:02]} 52. Kg1 {[%emt 0:00:01]} Ra1+ {[%emt 0:00:01]} 53. Kg2 {[%emt 0:00:01]} Ra3 {[%emt 0:00:01]} 1/2-1/2

[Event "Queens Festival Europe 2022"]
[Site "Tornelo"]
[Date "2022.06.19"]
[Round "9.1"]
[White "Gjergji, Rozana"]
[Black "Vujcic, Milena"]
[Result "0-1"]
[ECO "C80"]
[WhiteElo "1920"]
[BlackElo "1987"]
[Annotator "NA RC"]
[PlyCount "62"]
[EventDate "2022.06.19"]
[EventType "swiss"]
[EventCountry "NET"]
[SourceTitle "playchess.com"]
[Source "ChessBase"]
[SourceQuality "1"]
[TimeControl "180+2"]

1. e4 {[%emt 0:00:02]} e5 {[%emt 0:00:04]} 2. Nf3 {[%emt 0:00:04]} Nc6 {[%emt 0:00:02]} 3. Bb5 {[%emt 0:00:02]} a6 {[%emt 0:00:01]} 4. Ba4 {[%emt 0:00:02]} Nf6 {[%emt 0:00:01]} 5. O-O {[%emt 0:00:03]} Nxe4 {[%emt 0:00:02]} 6. Re1 {[%emt 0:00:02]} Nc5 {[%emt 0:00:03]} 7. Nxe5 {[%emt 0:00:06]} Nxe5 {[%emt 0:00:19]} 8. Rxe5+ {[%emt 0:00:04]} Be7 {[%emt 0:00:02]} 9. c3 {[%emt 0:00:04]} Nxa4 {[%emt 0:00:06]} 10. Qxa4 {[%emt 0:00:04]} O-O {[%emt 0:00:03]} 11. d4 {[%emt 0:00:02]} d5 {[%emt 0:00:06]} 12. Bf4 {[%emt 0:00:11]} c6 {[%emt 0:00:24]} 13. Re1 {[%emt 0:00:12]} Bf6 {[%emt 0:00:08]} 14. Nd2 {[%emt 0:00:03]} Bf5 {[%emt 0:00:05]} 15. Nf3 {[%emt 0:00:02]} Re8 {[%emt 0:00:06]} 16. Ne5 {[%emt 0:00:03]} Bg5 {[%emt 0:00:22]} 17. Bg3 {[%emt 0:00:07]} Be4 {[%emt 0:00:49]} 18. f3 {[%emt 0:00:05]} Bg6 {[%emt 0:00:03]} 19. Qb3 {[%emt 0:00:12]} Re7 {[%emt 0:00:13]} 20. Nxg6 {[%emt 0:00:10]} hxg6 {[%emt 0:00:03]} 21. Rxe7 {[%emt 0:00:06]} Qxe7 {[%emt 0:00:01]} 22. Re1 {[%emt 0:00:03]} Qd7 {[%emt 0:00:03]} 23. Qb4 {[%emt 0:00:10]} Re8 {[%emt 0:00:24]} 24. Rxe8+ {[%emt 0:00:24]} Qxe8 {[%emt 0:00:01]} 25. Qxb7 {[%emt 0:00:04]} Qe3+ {[%emt 0:00:03]} 26. Kf1 {[%emt 0:00:11]} Qd3+ {[%emt 0:00:02]} 27. Ke1 {[%emt 0:00:09]} Bd2+ {[%emt 0:00:03]} 28. Kf2 {[%emt 0:00:06]} Be3+ {[%emt 0:00:04]} 29. Ke1 {[%emt 0:00:04]} Qd2+ {[%emt 0:00:02]} 30. Kf1 {[%emt 0:00:09]} Qd1+ {[%emt 0:00:02]} 31. Be1 {[%emt 0:00:04]} Qd3# {[%emt 0:00:02]} 0-1

[Event "Queens Festival Europe 2022"]
[Site "Tornelo"]
[Date "2022.06.19"]
[Round "9.1"]
[White "Stadlinger, Lea"]
[Black "Rybackova, Lucie"]
[Result "1/2-1/2"]
[ECO "B43"]
[WhiteElo "1723"]
[BlackElo "1696"]
[Annotator "NA RC"]
[PlyCount "85"]
[EventDate "2022.06.19"]
[EventType "swiss"]
[EventCountry "NET"]
[SourceTitle "playchess.com"]
[Source "ChessBase"]
[SourceQuality "1"]
[TimeControl "180+2"]

1. e4 {[%emt 0:00:02]} c5 {[%emt 0:00:07]} 2. Nf3 {[%emt 0:00:03]} e6 {[%emt 0:00:02]} 3. d4 {[%emt 0:00:01]} cxd4 {[%emt 0:00:01]} 4. Nxd4 {[%emt 0:00:02]} a6 {[%emt 0:00:01]} 5. Nc3 {[%emt 0:00:03]} Qc7 {[%emt 0:00:02]} 6. Be3 {[%emt 0:00:09]} Bb4 {[%emt 0:00:03]} 7. Qd2 {[%emt 0:00:13]} Nf6 {[%emt 0:00:02]} 8. f3 {[%emt 0:00:03]} d5 {[%emt 0:00:03]} 9. exd5 {[%emt 0:00:28]} Nxd5 {[%emt 0:00:03]} 10. Nde2 {[%emt 0:00:03]} O-O {[%emt 0:00:29]} 11. a3 {[%emt 0:00:03]} Bxc3 {[%emt 0:00:08]} 12. Nxc3 {[%emt 0:00:02]} Nxe3 {[%emt 0:00:12]} 13. Qxe3 {[%emt 0:00:07]} Nc6 {[%emt 0:00:06]} 14. Bd3 {[%emt 0:00:04]} b5 {[%emt 0:00:03]} 15. O-O {[%emt 0:00:34]} Bb7 {[%emt 0:00:03]} 16. f4 {[%emt 0:00:13]} Rad8 {[%emt 0:00:34]} 17. Qh3 {[%emt 0:00:03]} h6 {[%emt 0:00:08]} 18. f5 {[%emt 0:00:06]} Ne5 {[%emt 0:00:47]} 19. fxe6 {[%emt 0:00:16]} Nxd3 {[%emt 0:00:02]} 20. exf7+ {[%emt 0:00:02]} Rxf7 {[%emt 0:00:03]} 21. cxd3 {[%emt 0:00:09]} Rxf1+ {[%emt 0:00:08]} 22. Rxf1 {[%emt 0:00:03]} Qc6 {[%emt 0:00:02]} 23. Rf2 {[%emt 0:00:21]} Re8 {[%emt 0:00:10]} 24. Ne4 {[%emt 0:00:09]} Qb6 {[%emt 0:00:04]} 25. Qf5 {[%emt 0:00:12]} Qc7 {[%emt 0:00:09]} 26. h3 {[%emt 0:00:07]} Bxe4 {[%emt 0:00:02]} 27. dxe4 {[%emt 0:00:03]} Qc1+ {[%emt 0:00:02]} 28. Kh2 {[%emt 0:00:01]} Qc7+ {[%emt 0:00:02]} 29. g3 {[%emt 0:00:05]} Qe7 {[%emt 0:00:04]} 30. Qd5+ {[%emt 0:00:02]} Kh7 {[%emt 0:00:04]} 31. Re2 {[%emt 0:00:03]} Rd8 {[%emt 0:00:05]} 32. Qc6 {[%emt 0:00:04]} Rd6 {[%emt 0:00:03]} 33. Qc5 {[%emt 0:00:04]} Re6 {[%emt 0:00:02]} 34. Qf5+ {[%emt 0:00:02]} g6 {[%emt 0:00:04]} 35. Qd5 {[%emt 0:00:03]} Re5 {[%emt 0:00:02]} 36. Qd3 {[%emt 0:00:03]} Re6 {[%emt 0:00:01]} 37. Qd4 {[%emt 0:00:03]} Re5 {[%emt 0:00:02]} 38. b3 {[%emt 0:00:01]} Re6 {[%emt 0:00:01]} 39. a4 {[%emt 0:00:02]} bxa4 {[%emt 0:00:02]} 40. bxa4 {[%emt 0:00:01]} Rd6 {[%emt 0:00:02]} 41. Qc4 {[%emt 0:00:02]} Re6 {[%emt 0:00:01]} 42. Qd5 {[%emt 0:00:05]} Re5 {[%emt 0:00:03]} 43. Qd4 {[%emt 0:00:03]} 1/2-1/2